fUSD/lending_fUSD_20250404
["ID","MTS","AMOUNT","RATE_DAILY","PERIOD"]
[357125979,1743771033988,-519.59004253,0.00049899,120]
[357125980,1743771034002,-500.0,0.00049899,120]
[357125981,1743771034017,-507.07756567,0.00049899,120]
[357125982,1743771034033,-500.0,0.00049899,120]
[357125983,1743771034049,-594.0100524,0.00049899,120]
[357125984,1743771034062,-529.17266479,0.00049899,120]
[357125985,1743771034073,-521.26258551,0.00049899,120]
[357125986,1743771034088,-500.0,0.00049899,120]
[357125987,1743771034102,-518.66460587,0.00049899,120]
[357125988,1743771034118,-532.17729312,0.00049899,120]
[357125989,1743771034133,-517.05032172,0.00049899,120]
[357125990,1743771034150,-601.72979801,0.00049899,120]
[357125991,1743771034163,-515.75252915,0.00049899,120]
[357125992,1743771034178,-521.75883563,0.00049899,120]
[357125993,1743771034193,-500.0,0.00049899,120]
[357125994,1743771034205,-537.39453689,0.00049899,120]
[357125995,1743771034219,-516.85067934,0.00049899,120]
[357125996,1743771034233,-500.0,0.00049899,120]
[357125997,1743771034249,-527.02005863,0.00049899,120]
[357125998,1743771034262,-500.0,0.00049899,120]
[357125999,1743771034275,-601.07551435,0.00049899,120]
[357126000,1743771034286,-516.7631436,0.00049899,120]
[357126001,1743771034298,-500.0,0.00049899,120]
[357126002,1743771034313,-519.59888658,0.00049899,120]
[357126003,1743771034328,-511.11022364,0.00049899,120]
[357126004,1743771034338,-504.23347743,0.00049899,120]
[357126005,1743771034349,-518.47606419,0.00049899,120]
[357126006,1743771034363,-520.64103329,0.00049899,120]
[357126007,1743771034377,-508.93069023,0.00049899,120]
[357126008,1743771034392,-531.46805608,0.00049899,120]
[357126009,1743771034403,-527.19988479,0.00049899,120]
[357126010,1743771034415,-513.39840847,0.00049899,120]
[357126011,1743771034428,-500.0,0.00049899,120]
[357126012,1743771034441,-500.0,0.00049899,120]
[357126013,1743771034455,-515.65228947,0.00049899,120]
[357126014,1743771034469,-532.77519483,0.00049899,120]
[357126015,1743771034484,-530.52390713,0.00049899,120]
[357126016,1743771034497,-512.49247206,0.00049899,120]
[357126017,1743771034510,-509.0573152,0.00049899,120]
[357126018,1743771034524,-504.53010352,0.00049899,120]
[357126019,1743771034536,-538.96258181,0.00049899,120]
[357126020,1743771034549,-500.83725801,0.00049899,120]
[357126021,1743771034561,-408.71747767,0.00049899,120]
[357126022,1743771034574,-508.77335529,0.00049899,120]
[357126023,1743771034586,-526.29435853,0.00049899,120]
[357126024,1743771034598,-543.48554587,0.00049899,120]
[357126025,1743771034611,-500.73973041,0.00049899,120]
[357126026,1743771034622,-514.59966109,0.00049899,120]
[357126027,1743771034636,-507.5282585,0.00049899,120]
[357126028,1743771034650,-518.39177176,0.00049899,120]
[357126029,1743771034662,-504.95443782,0.00049899,120]
[357126030,1743771034674,-503.12172661,0.00049899,120]
[357126031,1743771034686,-512.17927236,0.00049899,120]
[357126032,1743771034698,-516.23619888,0.00049899,120]
[357126033,1743771034711,-512.93735648,0.00049899,120]
[357126034,1743771034723,-525.84003026,0.00049899,120]
[357126035,1743771034735,-510.43740593,0.00049899,120]
[357126036,1743771034747,-507.82996616,0.00049899,120]
[357126037,1743771034760,-519.93349115,0.00049899,120]
[357126038,1743771034772,-511.85026155,0.00049899,120]
[357126039,1743771034785,-516.1920691,0.00049899,120]
[357126040,1743771034796,-504.80000003,0.00049899,120]
[357126041,1743771034808,-505.16275555,0.00049899,120]
[357126042,1743771034821,-473.64126566,0.00049899,120]
[357126043,1743771034834,-500.0,0.00049899,120]
[357126044,1743771034845,-505.12086617,0.00049899,120]
[357126045,1743771034857,-518.48720092,0.00049899,120]
[357126046,1743771034869,-505.06457416,0.00049899,120]
[357126047,1743771034881,-522.39765721,0.00049899,120]
[357126048,1743771034896,-523.61739178,0.00049899,120]
[357126049,1743771034908,-500.0,0.00049899,120]
[357126050,1743771034920,-514.0698861,0.00049899,120]
[357126051,1743771034932,-500.0,0.00049899,120]
[357126052,1743771034945,-504.6744574,0.00049899,120]
[357126053,1743771034960,-535.61014972,0.00049899,120]
[357126054,1743771034971,-589.22837171,0.00049899,120]
[357126055,1743771034983,-200.0,0.00049899,7]
[357126056,1743771034995,-512.04199717,0.00049899,120]
[357126057,1743771035008,-505.82685216,0.00049899,120]
[357126058,1743771035020,-500.0,0.00049899,120]
[357126059,1743771035034,-513.01890952,0.00049899,120]
[357126060,1743771035046,-506.17936138,0.00049899,120]
[357126061,1743771035060,-523.68970585,0.00049899,120]
[357126062,1743771035069,-521.4855556,0.00049899,120]
[357126063,1743771035080,-505.29979818,0.00049899,120]
[357126064,1743771035091,-500.0,0.00049899,120]
[357126065,1743771035101,-521.76464557,0.00049899,120]
[357126066,1743771035113,-500.0,0.00049899,120]
[357126067,1743771035279,-500.0,0.00049899,120]
[357126068,1743771035298,-512.62828529,0.00049899,120]
[357126069,1743771035312,-514.0657695,0.00049899,120]
[357126070,1743771035322,-1646.02877101,0.00049899,30]
[357126071,1743771035331,-520.3729583,0.00049899,120]
[357126072,1743771035340,-3500.0,0.00049899,10]
[357126073,1743771035350,-509.25278141,0.00049899,120]
[357126074,1743771035359,-500.0,0.00049899,120]
[357126075,1743771035368,-512.83918317,0.00049899,120]
[357126076,1743771035377,-500.0,0.00049899,120]
[357126077,1743771035386,-500.0,0.00049899,120]
[357126078,1743771035398,-513.10083019,0.00049899,120]
[357126079,1743771035407,-1021.55050526,0.00049899,120]
[357126080,1743771035417,-506.57665218,0.00049899,120]
[357126081,1743771035426,-452.29197202,0.00049899,120]
[357126082,1743771035436,-500.0,0.00049899,120]
[357126083,1743771035446,-500.0,0.00049899,120]
[357126084,1743771035455,-509.80227363,0.00049899,120]
[357126085,1743771035465,-545.24787912,0.00049899,120]
[357126086,1743771035474,-500.0,0.00049899,120]
[357126087,1743771035483,-500.0,0.00049899,120]
[357126088,1743771035492,-500.0,0.00049899,120]
[357126089,1743771035501,-500.0,0.00049899,120]
[357126090,1743771035511,-503.58785751,0.00049899,120]
[357126091,1743771035519,-500.0,0.00049899,120]
[357126092,1743771035529,-500.0,0.00049899,120]
[357126093,1743771035538,-500.0,0.00049899,120]
[357126094,1743771035548,-500.0,0.00049899,120]
[357126095,1743771035557,-858.96,0.00049899,120]
[357126096,1743771035566,-508.23819591,0.00049899,120]
[357126097,1743771035577,-500.0,0.00049899,120]
[357126098,1743771035586,-514.05579606,0.00049899,120]
[357126099,1743771035595,-505.61209837,0.00049899,120]
[357126100,1743771035604,-500.0,0.00049899,120]
[357126101,1743771035613,-501.57840029,0.00049899,120]
[357126102,1743771035622,-514.21859679,0.00049899,120]
[357126103,1743771035631,-529.29144241,0.00049899,120]
[357126104,1743771035642,-513.18775204,0.00049899,120]
[357126105,1743771035651,-500.0,0.00049899,120]
[357126106,1743771035660,-507.98901384,0.00049899,120]
[357126107,1743771035669,-500.0,0.00049899,120]
[357126108,1743771035678,-513.29709885,0.00049899,120]
[357126109,1743771035688,-512.20905779,0.00049899,120]
[357126110,1743771035697,-500.0,0.00049899,120]
[357126111,1743771035706,-500.0,0.00049899,120]
[357126112,1743771035715,-500.0,0.00049899,120]
[357126113,1743771035724,-1951.92,0.00049899,120]
[357126114,1743771035733,-395.30498524,0.00049899,120]
[357126115,1743771035760,-522.29744393,0.00049862,120]
[357126116,1743771035769,-120.75588039,0.00049862,120]
[357126120,1743771038269,-401.54156354,0.00049862,120]
[357126121,1743771038279,-522.29744393,0.00049862,120]
[357126122,1743771038289,-354.29063096,0.00049862,120]
[357126202,1743771040460,-500.0,0.00049315,120]
[357126203,1743771040470,-457.53066939,0.00049589,120]
[357126204,1743771040520,-42.46933061,0.00049589,120]
[357126205,1743771040530,-168.00681297,0.00049862,120]
[357126206,1743771040539,-522.29744393,0.00049862,120]
[357126207,1743771040549,-522.29744393,0.00049862,120]
[357126208,1743771040558,-522.29744393,0.00049862,120]
[357126209,1743771040568,-522.29744393,0.00049862,120]
[357126210,1743771040577,-522.29744393,0.00049862,120]
[357126211,1743771040586,-522.29744393,0.00049862,120]
[357126212,1743771040595,-522.29744393,0.00049862,120]
[357126213,1743771040604,-522.29744393,0.00049862,120]
[357126214,1743771040614,-522.29744393,0.00049862,120]
[357126215,1743771040623,-522.29744393,0.00049862,120]
[357126216,1743771040632,-371.70460232,0.00049862,120]
[357126333,1743771046642,-500.0,0.00049315,120]
[357126334,1743771046654,-500.0,0.00049589,120]
[357126335,1743771046664,-150.59284161,0.00049862,120]
[357126336,1743771046675,-522.29744393,0.00049862,120]
[357126337,1743771046685,-522.29744393,0.00049862,120]
[357126338,1743771046695,-522.29744393,0.00049862,120]
[357126339,1743771046704,-522.29744393,0.00049862,120]
[357126340,1743771046714,-522.29744393,0.00049862,120]
[357126341,1743771046724,-336.89709689,0.00049863,120]
[357126342,1743771046734,-254.29354101,0.00049863,120]
[357126343,1743771046743,-127.96171782,0.00049899,120]
[357126344,1743771046752,-500.0,0.00049899,10]
[357126345,1743771046762,-318.46742706,0.00049899,120]
[357126354,1743771077372,434.79,0.0004701,2]
[357126357,1743771436284,185.02543805,0.000195,2]
[357126358,1743771939128,-154.86,0.00026849,2]
[357126359,1743771939158,-350.0,0.00029534,12]
[357126360,1743771939184,-250.0,0.00029534,2]
[357126361,1743771939209,-250.0,0.00029534,2]
[357126362,1743771939236,-99.90644342,0.00034485,80]
[357126363,1743772029089,-154.26924631,0.00034485,80]
[357126364,1743772037085,-564.61431027,0.00034485,80]
[357126365,1743772037107,-154.86,0.00036027,2]
[357126366,1743772037127,-154.86,0.00045205,2]
[357126367,1743772037149,-171.60262584,0.00047714,120]
[357126368,1743772037170,-150.0,0.00047814,7]
[357126369,1743772037191,-150.0,0.00047969,2]
[357126370,1743772037212,-561.41,0.00048202,2]
[357126371,1743772037233,-198.67,0.00048202,120]
[357126372,1743772037256,-150.0,0.00048231,7]
[357126373,1743772037277,-150.0,0.00048286,7]
[357126374,1743772037440,-163.47,0.00048421,120]
[357126375,1743772037463,-150.0,0.00048428,7]
[357126376,1743772037485,-1000.0,0.00048503,2]
[357126377,1743772037508,-401.39,0.00048626,2]
[357126378,1743772037530,-150.0,0.00048718,7]
[357126379,1743772037551,-150.0,0.00048739,7]
[357126380,1743772037573,-150.0,0.00048777,7]
[357126381,1743772037594,-21932.73702648,0.00048875,2]
[357126382,1743772046082,-1967.26297352,0.00048875,2]
[357126383,1743772046103,-171.60262581,0.00048886,120]
[357126384,1743772046126,-150.0,0.00048902,7]
[357126385,1743772046147,-150.0,0.00048903,7]
[357126386,1743772046169,-250.0,0.0004892,120]
[357126387,1743772046190,-302.29,0.0004893,2]
[357126388,1743772046211,-1496.0,0.00049,2]
[357126389,1743772046232,-150.0,0.00049096,7]
[357126390,1743772046255,-434.79,0.00049274,2]
[357126391,1743772046277,-150.0,0.00049278,7]
[357126392,1743772046303,-392.402,0.00049278,86]
[357126393,1743772046324,-538.24913578,0.00049315,120]
[357126394,1743772046346,-534.83495399,0.00049315,120]
[357126395,1743772046367,-500.0,0.00049315,120]
[357126396,1743772046389,-513.01766303,0.00049315,120]
[357126397,1743772046410,-500.0,0.00049315,120]
[357126398,1743772046431,-500.0,0.00049315,120]
[357126399,1743772046451,-500.0,0.00049315,120]
[357126400,1743772046472,-331.62386702,0.00049315,120]
[357126401,1743772048118,-168.37613298,0.00049315,120]
[357126402,1743772048142,-501.97984464,0.00049315,120]
[357126403,1743772048165,-500.0,0.00049315,120]
[357126404,1743772048189,-500.0,0.00049315,120]
[357126405,1743772048212,-575.25,0.00049315,120]
[357126406,1743772048233,-519.99761517,0.00049315,120]
[357126407,1743772048255,-500.0,0.00049315,120]
[357126408,1743772048275,-500.0,0.00049315,120]
[357126409,1743772048298,-500.0,0.00049315,120]
[357126410,1743772048318,-98.08509255,0.00049315,120]
[357126411,1743772052120,-401.91490745,0.00049315,120]
[357126412,1743772052143,-582.28,0.00049315,120]
[357126413,1743772052164,-500.0,0.00049315,120]
[357126414,1743772052185,-500.0,0.00049315,120]
[357126415,1743772052205,-500.0,0.00049315,120]
[357126416,1743772052227,-500.0,0.00049315,120]
[357126417,1743772052248,-571.25721381,0.00049315,120]
[357126418,1743772052274,-500.0,0.00049315,120]
[357126419,1743772052299,-222.78530134,0.00049315,120]
[357126420,1743772052321,-776.32,0.00049315,120]
[357126421,1743772052343,-500.0,0.00049315,120]
[357126422,1743772052364,-74.70099821,0.00049315,120]
[357126441,1743772232258,-13279.88217045,0.00048,35]
[357126442,1743772232268,-1641.49,0.00048811,2]
[357126443,1743772232277,-202.195502,0.00049,120]
[357126444,1743772232286,-500.0,0.00049315,120]
[357126445,1743772232296,-649.74213344,0.00049315,120]
[357126446,1743772232305,-528.38872489,0.00049315,120]
[357126447,1743772232314,-500.0,0.00049315,120]
[357126448,1743772232323,-500.0,0.00049315,120]
[357126449,1743772232332,-500.0,0.00049315,120]
[357126450,1743772232342,-500.0,0.00049315,120]
[357126451,1743772232352,-972.82,0.00049315,120]
[357126452,1743772232366,-500.0,0.00049315,120]
[357126453,1743772232376,-500.0,0.00049315,120]
[357126454,1743772232385,-1095.21,0.00049315,30]
[357126455,1743772232395,-500.0,0.00049315,120]
[357126456,1743772232404,-500.0,0.00049315,120]
[357126457,1743772232413,-500.0,0.00049315,120]
[357126458,1743772232424,-500.0,0.00049315,120]
[357126459,1743772232435,-1179.3,0.00049315,120]
[357126460,1743772232445,-500.0,0.00049315,2]
[357126461,1743772232454,-500.0,0.00049315,120]
[357126462,1743772232464,-500.0,0.00049315,120]
[357126463,1743772232473,-500.0,0.00049315,120]
[357126464,1743772232483,-500.0,0.00049315,120]
[357126465,1743772232491,-500.0,0.00049315,120]
[357126466,1743772232500,-508.56776472,0.00049315,120]
[357126467,1743772232510,-290.96168493,0.00049315,120]
[357126468,1743772232519,-500.0,0.00049315,120]
[357126469,1743772232529,-500.0,0.00049315,120]
[357126470,1743772232538,-584.59,0.00049315,120]
[357126471,1743772232548,-500.0,0.00049315,120]
[357126472,1743772232557,-605.04320024,0.00049315,120]
[357126473,1743772232567,-2104.40305617,0.0004941,2]
[357126476,1743772232576,-843.38754993,0.00049489,15]
[357126478,1743772232726,-150.0,0.000495,2]
[357126480,1743772232736,-2191.83,0.000495,120]
[357126482,1743772232745,-150.0,0.00049506,7]
[357126484,1743772232755,-367.06728274,0.00049587,10]
[357126486,1743772232764,-500.0,0.00049589,120]
[357126488,1743772232773,-500.0,0.00049589,120]
[357126490,1743772232782,-500.0,0.00049589,120]
[357126492,1743772232791,-436.8529474,0.00049589,120]
[357126494,1743772232800,-500.0,0.00049589,120]
[357126496,1743772232810,-972.82,0.00049589,120]
[357126498,1743772232819,-500.0,0.00049589,120]
[357126500,1743772232828,-500.0,0.00049589,120]
[357126502,1743772232838,-1095.21,0.00049589,30]
[357126504,1743772232847,-500.0,0.00049589,120]
[357126506,1743772232856,-500.0,0.00049589,120]
[357126508,1743772232866,-299.06071247,0.00049589,120]
[357126510,1743772232875,-500.0,0.00049589,120]
[357126512,1743772232884,-1179.3,0.00049589,120]
[357126514,1743772232893,-500.0,0.00049589,2]
[357126516,1743772232903,-511.72267235,0.00049589,120]
[357126518,1743772232912,-500.0,0.00049589,120]
[357126520,1743772232924,-500.0,0.00049589,120]
[357126522,1743772232933,-500.0,0.00049589,120]
[357126524,1743772232942,-500.0,0.00049589,120]
[357126526,1743772232952,-500.0,0.00049589,120]
[357126528,1743772232961,-260.70508711,0.00049589,120]
[357126531,1743772232972,-584.59,0.00049589,120]
[357126533,1743772232982,-235.42418702,0.00049589,120]
[357126535,1743772232991,-166.66,0.00049732,2]
[357126536,1743772233001,-843.38754986,0.00049746,15]
[357126539,1743772233010,-1000.0,0.00049763,2]
[357126541,1743772233020,-1248.06647187,0.00049798,15]
[357126543,1743772233029,-171.07609768,0.00049798,28]
[357126544,1743772233039,-500.0,0.00049862,120]
[357126546,1743772233048,-634.35653792,0.00049862,120]
[357126549,1743772233058,-500.0,0.00049862,120]
[357126550,1743772233068,-500.0,0.00049862,100]
[357126552,1743772233078,-500.0,0.00049862,120]
[357126554,1743772233087,-500.0,0.00049862,120]
[357126557,1743772233097,-500.0,0.00049862,120]
[357126558,1743772233106,-839.0,0.00049862,120]
[357126561,1743772233116,-579.13165261,0.00049862,120]
[357126563,1743772233125,-500.0,0.00049862,120]
[357126564,1743772233134,-503.53895712,0.00049862,120]
[357126566,1743772233144,-516.68610731,0.00049862,120]
[357126569,1743772233157,-523.10801618,0.00049862,120]
[357126571,1743772233167,-620.75153249,0.00049862,120]
[357126573,1743772233177,-634.70464693,0.00049862,120]
[357126575,1743772233186,-500.0,0.00049862,120]
[357126577,1743772233195,-500.0,0.00049862,120]
[357126579,1743772233204,-500.0,0.00049862,120]
[357126580,1743772233213,-609.80026627,0.00049862,120]
[357126583,1743772233223,-500.0,0.00049862,120]
[357126585,1743772233233,-500.0,0.00049862,120]
[357126587,1743772233242,-500.0,0.00049862,120]
[357126588,1743772233251,-500.0,0.00049862,120]
[357126590,1743772233261,-500.0,0.00049862,120]
[357126592,1743772233272,-618.36751339,0.00049862,120]
[357126594,1743772233282,-500.0,0.00049862,7]
[357126596,1743772233292,-500.0,0.00049862,120]
[357126598,1743772233302,-500.0,0.00049862,120]
[357126600,1743772233311,-500.0,0.00049862,120]
[357126602,1743772233321,-537.84108726,0.00049862,120]
[357126604,1743772233331,-500.0,0.00049862,120]
[357126606,1743772233340,-589.78655228,0.00049862,120]
[357126608,1743772233352,-500.0,0.00049862,120]
[357126610,1743772233364,-561.38883343,0.00049862,120]
[357126612,1743772233373,-698.13,0.00049862,120]
[357126614,1743772233382,-500.0,0.00049862,120]
[357126615,1743772233394,-500.0,0.00049862,120]
[357126616,1743772233404,-500.0,0.00049862,120]
[357126617,1743772233413,-500.0,0.00049862,120]
[357126618,1743772233426,-975.29,0.00049862,120]
[357126619,1743772233436,-500.0,0.00049862,120]
[357126620,1743772233446,-500.0,0.00049862,120]
[357126621,1743772233455,-500.0,0.00049862,120]
[357126622,1743772233464,-500.0,0.00049862,120]
[357126623,1743772233474,-500.0,0.00049862,120]
[357126624,1743772233483,-525.02834841,0.00049862,120]
[357126625,1743772233493,-500.0,0.00049862,120]
[357126626,1743772233503,-2532.79,0.00049862,7]
[357126627,1743772233513,-500.0,0.00049862,120]
[357126629,1743772233522,-500.0,0.00049862,120]
[357126631,1743772233532,-609.54692479,0.00049863,120]
[357126633,1743772233541,-500.0,0.00049863,120]
[357126635,1743772233550,-500.0,0.00049863,120]
[357126637,1743772233559,-500.0,0.00049863,120]
[357126639,1743772233568,-972.82,0.00049863,120]
[357126641,1743772233578,-500.0,0.00049863,120]
[357126643,1743772233588,-235.83748568,0.00049863,120]
[357126645,1743772233598,-1095.21,0.00049863,30]
[357126647,1743772233611,-500.0,0.00049863,120]
[357126649,1743772233620,-500.0,0.00049863,120]
[357126651,1743772233630,-318.03088674,0.00049863,120]
[357126653,1743772233640,-1179.3,0.00049863,120]
[357126655,1743772233649,-500.0,0.00049863,2]
[357126657,1743772233659,-500.0,0.00049863,120]
[357126659,1743772233669,-500.0,0.00049863,120]
[357126661,1743772233679,-392.1711106,0.00049863,120]
[357126663,1743772233688,-500.0,0.00049863,120]
[357126665,1743772233698,-500.0,0.00049863,120]
[357126667,1743772233707,-584.59,0.00049863,120]
[357126669,1743772233717,-152.29444619,0.00049869,26]
[357126672,1743772233728,-184.51238134,0.0004988,38]
[357126674,1743772233738,-562.49397712,0.00049887,120]
[357126676,1743772233748,-562.49397712,0.00049887,120]
[357126678,1743772233757,-562.49397712,0.00049887,120]
[357126680,1743772233766,-562.49397712,0.00049887,120]
[357126682,1743772233776,-562.49397712,0.00049887,120]
[357126684,1743772233785,-562.49397712,0.00049887,120]
[357126686,1743772233794,-562.49397712,0.00049887,120]
[357126688,1743772233804,-562.49397712,0.00049887,120]
[357126690,1743772233813,-562.49397712,0.00049887,120]
[357126692,1743772233823,-562.49397712,0.00049887,120]
[357126694,1743772233832,-562.49397712,0.00049887,120]
[357126696,1743772233842,-562.49397712,0.00049887,120]
[357126698,1743772233852,-562.49397712,0.00049887,120]
[357126700,1743772233861,-562.49397712,0.00049887,120]
[357126701,1743772233871,-562.49397712,0.00049887,120]
[357126704,1743772233881,-562.49397712,0.00049887,120]
[357126706,1743772233891,-562.49397712,0.00049887,120]
[357126707,1743772233901,-576.55632655,0.00049887,120]
[357126709,1743772233911,-576.55632655,0.00049887,120]
[357126711,1743772233921,-576.55632655,0.00049887,120]
[357126713,1743772233931,-576.55632655,0.00049887,120]
[357126715,1743772233940,-576.55632655,0.00049887,120]
[357126717,1743772233949,-576.55632655,0.00049887,120]
[357126719,1743772233958,-576.55632655,0.00049887,120]
[357126721,1743772233968,-576.55632655,0.00049887,120]
[357126723,1743772233977,-576.55632655,0.00049887,120]
[357126725,1743772233986,-576.55632655,0.00049887,120]
[357126727,1743772233996,-576.55632655,0.00049887,120]
[357126729,1743772234005,-489.54959901,0.00049887,120]
[357126749,1743772234179,-97.94141652,0.00049887,120]
[357126750,1743772234188,-587.49101553,0.00049887,120]
[357126752,1743772234198,-78.49756795,0.00049888,120]
[357126757,1743772234230,-421.50243205,0.00049888,120]
[357126759,1743772234240,-478.05464359,0.00049888,120]
[357126922,1743772238612,-277.545,0.00048866,2]
[357126923,1743772238622,-150.93835,0.00049315,120]
[357126924,1743772238632,-56.37094815,0.00049862,120]
[357126925,1743772238820,-443.62905185,0.00049862,120]
[357126926,1743772238829,-662.91,0.00049862,120]
[357126927,1743772238838,-21.94535641,0.00049888,120]
[357126928,1743772238847,-1870.59,0.00049888,120]
[357126929,1743772238856,-500.0,0.00049888,120]
[357126930,1743772238865,-2017.41,0.00049888,120]
[357126931,1743772238874,-822.8,0.00049888,120]
[357126932,1743772238883,-500.0,0.00049888,120]
[357126933,1743772238893,-500.0,0.00049888,120]
[357126934,1743772238902,-901.98,0.00049888,120]
[357126935,1743772238911,-520.58,0.00049888,120]
[357126936,1743772238922,-500.0,0.00049888,120]
[357126937,1743772238932,-500.0,0.00049888,120]
[357126938,1743772238941,-500.0,0.00049888,120]
[357126939,1743772238951,-302.80974942,0.00049888,2]
[357126940,1743772238960,-785.9,0.00049888,120]
[357126941,1743772238969,-500.0,0.00049888,120]
[357126942,1743772238978,-500.0,0.00049888,120]
[357126943,1743772238987,-500.0,0.00049888,120]
[357126944,1743772238997,-500.0,0.00049888,120]
[357126945,1743772239006,-595.6247796,0.00049888,120]
[357126946,1743772239015,-500.0,0.00049888,120]
[357126947,1743772239024,-500.0,0.00049888,120]
[357126948,1743772239036,-500.0,0.00049888,100]
[357126949,1743772239046,-16401.4931537,0.00049888,4]
[357126950,1743772239055,-281.09,0.00049888,2]
[357126951,1743772239064,-49204.479461,0.00049889,4]
[357126952,1743772239073,-16401.4931537,0.0004989,4]
[357126953,1743772239083,-500.0,0.00049897,120]
[357126954,1743772239092,-500.0,0.00049897,120]
[357126955,1743772239102,-500.0,0.00049897,2]
[357126956,1743772239111,-692.23,0.00049897,120]
[357126957,1743772239120,-500.0,0.00049897,2]
[357126958,1743772239129,-42232.26010207,0.00049898,61]
[357126959,1743772239138,-212.0,0.00049898,2]
[357126960,1743772239148,-500.0,0.00049898,120]
[357126961,1743772239157,-522.79583085,0.00049898,120]
[357126962,1743772239167,-500.0,0.00049898,120]
[357126963,1743772239176,-166.99521515,0.00049898,120]
[357126964,1743772239186,-387.35103795,0.00049898,2]
[357126965,1743772239195,-500.0,0.00049898,120]
[357126966,1743772239204,-218.70935109,0.00049898,120]
[357126967,1743772239214,-983.7,0.00049898,120]
[357126968,1743772239223,-500.0,0.00049898,120]
[357126969,1743772239232,-500.0,0.00049898,120]
[357126970,1743772239241,-538.45,0.00049898,120]
[357126971,1743772239250,-500.0,0.00049898,120]
[357126972,1743772239259,-547.6137693,0.00049898,120]
[357126973,1743772239269,-500.0,0.00049898,120]
[357126974,1743772239278,-500.0,0.00049898,120]
[357126975,1743772239287,-500.0,0.00049898,120]
[357126976,1743772239296,-500.0,0.00049898,120]
[357126977,1743772239306,-500.0,0.00049898,120]
[357126978,1743772239315,-500.0,0.00049898,30]
[357126979,1743772239325,-500.0,0.00049898,120]
[357126980,1743772239336,-500.0,0.00049898,120]
[357126981,1743772239345,-508.6481297,0.00049898,120]
[357126982,1743772239356,-200.0,0.00049898,7]
[357126983,1743772239369,-500.0,0.00049898,120]
[357126984,1743772239378,-500.0,0.00049898,120]
[357126985,1743772239387,-225.59615198,0.00049898,120]
[357126986,1743772239396,-514.97701286,0.00049898,120]
[357126987,1743772239406,-500.0,0.00049898,120]
[357126988,1743772239415,-500.0,0.00049898,120]
[357126989,1743772239424,-500.0,0.00049898,120]
[357126990,1743772239436,-500.0,0.00049898,120]
[357126991,1743772239445,-516.54892879,0.00049898,120]
[357126992,1743772239454,-512.44170722,0.00049898,120]
[357126993,1743772239463,-535.32284234,0.00049898,120]
[357126994,1743772239472,-500.0,0.00049898,120]
[357126995,1743772239482,-520.99563222,0.00049898,120]
[357126996,1743772239491,-534.61204394,0.00049898,120]
[357126997,1743772239500,-520.18576468,0.00049898,120]
[357126998,1743772239509,-500.0,0.00049898,120]
[357126999,1743772239518,-537.73872909,0.00049898,120]
[357127000,1743772239528,-513.78564579,0.00049898,120]
[357127001,1743772239537,-500.0,0.00049898,120]
[357127002,1743772239546,-339.62877143,0.00049898,120]
[357127003,1743772239556,-511.58633939,0.00049898,120]
[357127004,1743772239566,-539.74495449,0.00049898,120]
[357127005,1743772239575,-500.0,0.00049898,120]
[357127006,1743772239584,-508.71532521,0.00049898,120]
[357127007,1743772239593,-535.96303777,0.00049898,120]
[357127008,1743772239602,-518.37421018,0.00049898,120]
[357127009,1743772239612,-500.0,0.00049898,120]
[357127010,1743772239622,-3500.0,0.00049898,10]
[357127011,1743772239634,-532.42613284,0.00049898,120]
[357127012,1743772239643,-500.0,0.00049898,120]
[357127013,1743772239653,-500.0,0.00049898,120]